[Event "Titled Tuesday Blitz October 31 Early 2023"]
[White "Skliarov, Viktor"]
[Black "mind1mover"]
[WhiteFideId "14106736"]
[WhiteElo "2647"]
[BlackElo "2770"]
[Result "1-0"]
[Round "10"]
[TimeControl "180+1"]
[Date "2023.10.31"]
[WhiteClock "0:00:43"]
[BlackClock "0:00:01"]
[Board "28"]

1. e4 {[%clk 0:02:59]}  Nc6 {[%clk 0:02:57]} 2. Nc3 {[%clk 0:02:58]}  Nf6 {[%clk 0:02:57]} 3. d4 {[%clk 0:02:57]}  d6 {[%clk 0:02:57]} 4. f3 {[%clk 0:02:56]}  a6 {[%clk 0:02:52]} 5. Be3 {[%clk 0:02:55]}  b5 {[%clk 0:02:52]} 6. Qd2 {[%clk 0:02:51]}  h5 {[%clk 0:02:49]} 7. a4 {[%clk 0:02:48]}  b4 {[%clk 0:02:48]} 8. Nd5 {[%clk 0:02:48]}  e6 {[%clk 0:02:18]} 9. Nxf6+ {[%clk 0:02:38]}  Qxf6 {[%clk 0:02:08]} 10. a5 {[%clk 0:02:38]}  g6 {[%clk 0:01:45]} 11. Bc4 {[%clk 0:02:26]}  h4 {[%clk 0:01:37]} 12. Nh3 {[%clk 0:02:03]}  Bg7 {[%clk 0:01:32]} 13. c3 {[%clk 0:02:03]}  Qe7 {[%clk 0:01:21]} 14. O-O {[%clk 0:01:53]}  Rb8 {[%clk 0:01:20]} 15. Qe2 {[%clk 0:01:34]}  Ra8 {[%clk 0:01:06]} 16. f4 {[%clk 0:01:28]}  O-O {[%clk 0:00:31]} 17. e5 {[%clk 0:01:17]}  Bb7 {[%clk 0:00:13]} 18. Qg4 {[%clk 0:01:09]}  Nd8 {[%clk 0:00:02]} 19. Ng5 {[%clk 0:01:03]}  d5 {[%clk 0:00:02]} 20. Bd3 {[%clk 0:01:01]}  f6 {[%clk 0:00:02]} 21. exf6 {[%clk 0:01:01]}  Qxf6 {[%clk 0:00:02]} 22. Qxh4 {[%clk 0:00:59]}  Re8 {[%clk 0:00:02]} 23. Qh7+ {[%clk 0:00:58]}  Kf8 {[%clk 0:00:02]} 24. Bxg6 {[%clk 0:00:49]}  Re7 {[%clk 0:00:03]} 25. Qh5 {[%clk 0:00:48]}  Kg8 {[%clk 0:00:01]} 26. Nh7 {[%clk 0:00:43]} 1-0


[Site "https://www.chess.com"]

[Event "Titled Tuesday Blitz October 31 Early 2023"]
[White "Mekhitarian, Krikor Sevag"]
[Black "Kuzhylnyi, Oleksandr"]
[WhiteFideId "2107660"]
[BlackFideId "34110500"]
[WhiteElo "2765"]
[BlackElo "2645"]
[Result "1-0"]
[Round "10"]
[TimeControl "180+1"]
[Date "2023.10.31"]
[WhiteClock "0:00:51"]
[BlackClock "0:00:04"]
[Board "29"]

1. Nf3 {[%clk 0:03:00]}  g6 {[%clk 0:02:58]} 2. c4 {[%clk 0:03:00]}  Bg7 {[%clk 0:02:57]} 3. e4 {[%clk 0:03:01]}  d6 {[%clk 0:02:58]} 4. d4 {[%clk 0:03:01]}  Nf6 {[%clk 0:02:58]} 5. Nc3 {[%clk 0:03:01]}  O-O {[%clk 0:02:59]} 6. h3 {[%clk 0:03:02]}  e5 {[%clk 0:02:57]} 7. d5 {[%clk 0:03:02]}  a5 {[%clk 0:02:57]} 8. g4 {[%clk 0:03:02]}  Na6 {[%clk 0:02:57]} 9. Be3 {[%clk 0:03:02]}  Nd7 {[%clk 0:02:56]} 10. a3 {[%clk 0:03:02]}  Nb6 {[%clk 0:02:51]} 11. Rg1 {[%clk 0:02:53]}  Kh8 {[%clk 0:02:45]} 12. h4 {[%clk 0:02:51]}  f5 {[%clk 0:02:44]} 13. gxf5 {[%clk 0:02:49]}  gxf5 {[%clk 0:02:45]} 14. exf5 {[%clk 0:02:44]}  Bxf5 {[%clk 0:02:46]} 15. Ng5 {[%clk 0:02:44]}  Qe8 {[%clk 0:02:39]} 16. Bd3 {[%clk 0:02:37]}  e4 {[%clk 0:02:29]} 17. Ngxe4 {[%clk 0:02:37]}  Bg6 {[%clk 0:01:47]} 18. Qc2 {[%clk 0:02:13]}  Nc5 {[%clk 0:01:33]} 19. Nxc5 {[%clk 0:02:08]}  dxc5 {[%clk 0:01:28]} 20. Bxg6 {[%clk 0:01:57]}  hxg6 {[%clk 0:01:29]} 21. Rg4 {[%clk 0:01:45]}  Qd7 {[%clk 0:00:50]} 22. Qxg6 {[%clk 0:01:41]}  Rae8 {[%clk 0:00:31]} 23. O-O-O {[%clk 0:01:28]}  Rxe3 {[%clk 0:00:27]} 24. fxe3 {[%clk 0:01:27]}  Rf6 {[%clk 0:00:23]} 25. Qh5+ {[%clk 0:01:12]}  Rh6 {[%clk 0:00:22]} 26. Qg5 {[%clk 0:01:13]}  Qf7 {[%clk 0:00:13]} 27. Rdg1 {[%clk 0:01:06]}  Bxc3 {[%clk 0:00:06]} 28. bxc3 {[%clk 0:01:01]}  Rh5 {[%clk 0:00:04]} 29. Qd8+ {[%clk 0:00:51]}  Kh7 {[%clk 0:00:05]} 30. Rg7+ {[%clk 0:00:51]}  Qxg7 {[%clk 0:00:06]} 31. Rxg7+ {[%clk 0:00:51]}  Kxg7 {[%clk 0:00:04]} 32. Qxc7+ {[%clk 0:00:51]} 1-0


[Site "https://www.chess.com"]

[Event "Titled Tuesday Blitz October 31 Early 2023"]
[White "Kovalevsky, Stanislav"]
[Black "Mndapoetzz04"]
[WhiteFideId "13508598"]
[WhiteElo "2424"]
[BlackElo "2749"]
[Result "0-1"]
[Round "10"]
[TimeControl "180+1"]
[Date "2023.10.31"]
[WhiteClock "0:00:09"]
[BlackClock "0:01:37"]
[Board "32"]

1. e4 {[%clk 0:03:00]}  c5 {[%clk 0:02:53]} 2. c3 {[%clk 0:03:00]}  d5 {[%clk 0:02:51]} 3. exd5 {[%clk 0:03:00]}  Qxd5 {[%clk 0:02:51]} 4. Nf3 {[%clk 0:03:01]}  Nc6 {[%clk 0:02:50]} 5. d4 {[%clk 0:03:01]}  cxd4 {[%clk 0:02:47]} 6. cxd4 {[%clk 0:03:00]}  Bg4 {[%clk 0:02:48]} 7. Be2 {[%clk 0:02:59]}  e6 {[%clk 0:02:44]} 8. Nc3 {[%clk 0:02:59]}  Qa5 {[%clk 0:02:39]} 9. Qb3 {[%clk 0:02:59]}  Bb4 {[%clk 0:02:34]} 10. Be3 {[%clk 0:02:40]}  Nge7 {[%clk 0:02:31]} 11. O-O {[%clk 0:02:38]}  O-O {[%clk 0:02:30]} 12. Ne4 {[%clk 0:02:30]}  Qd5 {[%clk 0:02:12]} 13. Qd3 {[%clk 0:02:03]}  Bf5 {[%clk 0:02:07]} 14. Nfg5 {[%clk 0:01:37]}  h6 {[%clk 0:02:05]} 15. Qd1 {[%clk 0:00:56]}  hxg5 {[%clk 0:02:04]} 16. Nxg5 {[%clk 0:00:52]}  Rad8 {[%clk 0:01:53]} 17. Bf3 {[%clk 0:00:36]}  Qa5 {[%clk 0:01:52]} 18. a3 {[%clk 0:00:33]}  Bd6 {[%clk 0:01:50]} 19. b4 {[%clk 0:00:29]}  Qc7 {[%clk 0:01:50]} 20. h4 {[%clk 0:00:28]}  Bf4 {[%clk 0:01:48]} 21. Rc1 {[%clk 0:00:25]}  Bxe3 {[%clk 0:01:44]} 22. fxe3 {[%clk 0:00:25]}  Qg3 {[%clk 0:01:44]} 23. Bxc6 {[%clk 0:00:19]}  bxc6 {[%clk 0:01:41]} 24. Rxf5 {[%clk 0:00:15]}  Nxf5 {[%clk 0:01:41]} 25. Qh5 {[%clk 0:00:14]}  Qxe3+ {[%clk 0:01:41]} 26. Kh2 {[%clk 0:00:13]}  Qf4+ {[%clk 0:01:40]} 27. g3 {[%clk 0:00:13]}  Qxg3+ {[%clk 0:01:40]} 28. Kh1 {[%clk 0:00:13]}  Qxh4+ {[%clk 0:01:39]} 29. Qxh4 {[%clk 0:00:12]}  Nxh4 {[%clk 0:01:40]} 30. Rxc6 {[%clk 0:00:12]}  Rxd4 {[%clk 0:01:41]} 31. Rc7 {[%clk 0:00:13]}  Rg4 {[%clk 0:01:38]} 32. Nh3 {[%clk 0:00:12]}  Nf3 {[%clk 0:01:38]} 33. Rc3 {[%clk 0:00:11]}  Rg3 {[%clk 0:01:38]} 34. b5 {[%clk 0:00:08]}  Rd8 {[%clk 0:01:37]} 35. a4 {[%clk 0:00:08]}  Rd1+ {[%clk 0:01:37]} 36. Ng1 {[%clk 0:00:09]}  Rdxg1# {[%clk 0:01:37]} 0-1


[Site "https://www.chess.com"]

[Event "Titled Tuesday Blitz October 31 Early 2023"]
[White "Amilal Munkhdalai"]
[Black "Klukin, Kirill"]
[WhiteFideId "4903250"]
[BlackFideId "24199273"]
[WhiteElo "2682"]
[BlackElo "2835"]
[Result "0-1"]
[Round "10"]
[TimeControl "180+1"]
[Date "2023.10.31"]
[WhiteClock "0:00:10"]
[BlackClock "0:00:04"]
[Board "33"]

1. e4 {[%clk 0:03:00]}  c5 {[%clk 0:02:59]} 2. Nf3 {[%clk 0:03:01]}  g6 {[%clk 0:02:59]} 3. d4 {[%clk 0:03:01]}  cxd4 {[%clk 0:03:00]} 4. Nxd4 {[%clk 0:03:01]}  Bg7 {[%clk 0:03:01]} 5. c4 {[%clk 0:03:02]}  Nc6 {[%clk 0:03:01]} 6. Be3 {[%clk 0:03:02]}  Nf6 {[%clk 0:03:02]} 7. Nc3 {[%clk 0:03:01]}  O-O {[%clk 0:03:03]} 8. Be2 {[%clk 0:03:01]}  d6 {[%clk 0:03:03]} 9. O-O {[%clk 0:03:02]}  Bd7 {[%clk 0:03:03]} 10. Qd2 {[%clk 0:03:02]}  Nxd4 {[%clk 0:03:04]} 11. Bxd4 {[%clk 0:03:02]}  Bc6 {[%clk 0:03:04]} 12. f3 {[%clk 0:03:02]}  a5 {[%clk 0:03:05]} 13. b3 {[%clk 0:03:01]}  Nd7 {[%clk 0:03:05]} 14. Be3 {[%clk 0:03:02]}  Nc5 {[%clk 0:03:05]} 15. Rfc1 {[%clk 0:02:59]}  e6 {[%clk 0:03:05]} 16. Rab1 {[%clk 0:02:59]}  Be5 {[%clk 0:03:05]} 17. Bf2 {[%clk 0:02:55]}  Qe7 {[%clk 0:03:04]} 18. a3 {[%clk 0:02:54]}  a4 {[%clk 0:03:04]} 19. bxa4 {[%clk 0:02:47]}  Nxa4 {[%clk 0:03:03]} 20. Nxa4 {[%clk 0:02:39]}  Rxa4 {[%clk 0:03:02]} 21. c5 {[%clk 0:02:22]}  Rd8 {[%clk 0:02:41]} 22. Qa2 {[%clk 0:02:03]}  dxc5 {[%clk 0:02:38]} 23. Bxc5 {[%clk 0:01:47]}  Bd4+ {[%clk 0:02:32]} 24. Bxd4 {[%clk 0:01:47]}  Rdxd4 {[%clk 0:02:33]} 25. Bb5 {[%clk 0:01:39]}  Rxa3 {[%clk 0:02:17]} 26. Qb2 {[%clk 0:01:38]}  e5 {[%clk 0:01:42]} 27. Bxc6 {[%clk 0:01:37]}  bxc6 {[%clk 0:01:43]} 28. Rxc6 {[%clk 0:01:36]}  Rad3 {[%clk 0:01:42]} 29. Qe2 {[%clk 0:01:01]}  Qg5 {[%clk 0:01:27]} 30. Rc2 {[%clk 0:00:55]}  Kg7 {[%clk 0:01:18]} 31. Re1 {[%clk 0:00:42]}  h5 {[%clk 0:01:14]} 32. Qf2 {[%clk 0:00:40]}  h4 {[%clk 0:01:13]} 33. h3 {[%clk 0:00:37]}  Rd6 {[%clk 0:00:48]} 34. Rce2 {[%clk 0:00:36]}  Qf4 {[%clk 0:00:45]} 35. Re3 {[%clk 0:00:32]}  Rd2 {[%clk 0:00:45]} 36. R3e2 {[%clk 0:00:32]}  R2d3 {[%clk 0:00:45]} 37. Re3 {[%clk 0:00:32]}  Qg5 {[%clk 0:00:36]} 38. Rxd3 {[%clk 0:00:26]}  Rxd3 {[%clk 0:00:37]} 39. Re2 {[%clk 0:00:21]}  Rd1+ {[%clk 0:00:34]} 40. Re1 {[%clk 0:00:21]}  Rd2 {[%clk 0:00:30]} 41. Re2 {[%clk 0:00:20]}  Rd1+ {[%clk 0:00:31]} 42. Re1 {[%clk 0:00:20]}  Rd3 {[%clk 0:00:31]} 43. Qf1 {[%clk 0:00:18]}  Qd8 {[%clk 0:00:24]} 44. Qf2 {[%clk 0:00:18]}  Rd2 {[%clk 0:00:24]} 45. Re2 {[%clk 0:00:18]}  Rd1+ {[%clk 0:00:24]} 46. Re1 {[%clk 0:00:19]}  Rd3 {[%clk 0:00:25]} 47. f4 {[%clk 0:00:18]}  Rd2 {[%clk 0:00:23]} 48. Qf3 {[%clk 0:00:15]}  Qd4+ {[%clk 0:00:21]} 49. Kh1 {[%clk 0:00:14]}  Rf2 {[%clk 0:00:21]} 50. Qe3 {[%clk 0:00:11]}  Rf1+ {[%clk 0:00:17]} 51. Kh2 {[%clk 0:00:11]}  Rxe1 {[%clk 0:00:15]} 52. Qxe1 {[%clk 0:00:10]}  exf4 {[%clk 0:00:16]} 53. Qxh4 {[%clk 0:00:11]}  Qxe4 {[%clk 0:00:16]} 54. Qg4 {[%clk 0:00:10]}  Qe5 {[%clk 0:00:16]} 55. Qf3 {[%clk 0:00:10]}  Qe3 {[%clk 0:00:15]} 56. Qg4 {[%clk 0:00:10]}  Qe5 {[%clk 0:00:09]} 57. Qf3 {[%clk 0:00:10]}  Kf6 {[%clk 0:00:10]} 58. h4 {[%clk 0:00:07]}  Qf5 {[%clk 0:00:05]} 59. Kg1 {[%clk 0:00:05]}  Kg7 {[%clk 0:00:05]} 60. Kh2 {[%clk 0:00:05]}  Qe5 {[%clk 0:00:05]} 61. Kh3 {[%clk 0:00:05]}  Kf6 {[%clk 0:00:06]} 62. Kh2 {[%clk 0:00:05]}  Qf5 {[%clk 0:00:06]} 63. Kg1 {[%clk 0:00:04]}  Ke5 {[%clk 0:00:05]} 64. Kh2 {[%clk 0:00:04]}  Qe4 {[%clk 0:00:04]} 65. Qg4 {[%clk 0:00:04]}  Kd6 {[%clk 0:00:02]} 66. Qg5 {[%clk 0:00:04]}  Ke6 {[%clk 0:00:03]} 67. Qg4+ {[%clk 0:00:04]}  Ke7 {[%clk 0:00:03]} 68. Qg5+ {[%clk 0:00:05]}  Ke8 {[%clk 0:00:04]} 69. Qg4 {[%clk 0:00:05]}  Qe5 {[%clk 0:00:05]} 70. Kh3 {[%clk 0:00:05]}  Qe6 {[%clk 0:00:04]} 71. Qxe6+ {[%clk 0:00:03]}  fxe6 {[%clk 0:00:04]} 72. Kg4 {[%clk 0:00:04]}  e5 {[%clk 0:00:05]} 73. g3 {[%clk 0:00:04]}  fxg3 {[%clk 0:00:04]} 74. Kxg3 {[%clk 0:00:04]}  Kf7 {[%clk 0:00:05]} 75. Kf3 {[%clk 0:00:04]}  Kf6 {[%clk 0:00:05]} 76. Ke4 {[%clk 0:00:05]}  Ke6 {[%clk 0:00:06]} 77. Ke3 {[%clk 0:00:06]}  Kf5 {[%clk 0:00:07]} 78. Kf3 {[%clk 0:00:07]}  e4+ {[%clk 0:00:02]} 79. Ke3 {[%clk 0:00:07]}  Ke5 {[%clk 0:00:03]} 80. Kf2 {[%clk 0:00:06]}  Kf4 {[%clk 0:00:04]} 81. Ke2 {[%clk 0:00:07]}  Kg4 {[%clk 0:00:04]} 82. Ke3 {[%clk 0:00:08]}  Kxh4 {[%clk 0:00:05]} 83. Kxe4 {[%clk 0:00:08]}  g5 {[%clk 0:00:05]} 84. Kf3 {[%clk 0:00:09]}  Kh3 {[%clk 0:00:06]} 85. Kf2 {[%clk 0:00:10]}  g4 {[%clk 0:00:04]} 86. Kg1 {[%clk 0:00:11]}  Kg3 {[%clk 0:00:03]} 87. Kf1 {[%clk 0:00:11]}  Kh2 {[%clk 0:00:03]} 88. Kf2 {[%clk 0:00:10]}  g3+ {[%clk 0:00:04]} 0-1


[Site "https://www.chess.com"]

[Event "Titled Tuesday Blitz October 31 Early 2023"]
[White "Mendez Fortes, Eduardo Jesus"]
[Black "Kozak, Antoni"]
[WhiteFideId "3502376"]
[BlackFideId "21832030"]
[WhiteElo "2681"]
[BlackElo "2820"]
[Result "1-0"]
[Round "10"]
[TimeControl "180+1"]
[Date "2023.10.31"]
[WhiteClock "0:00:26"]
[BlackClock "0:00:00"]
[Board "34"]

1. e4 {[%clk 0:03:00]}  c5 {[%clk 0:02:59]} 2. Nf3 {[%clk 0:03:01]}  Nc6 {[%clk 0:03:00]} 3. d4 {[%clk 0:03:01]}  cxd4 {[%clk 0:03:00]} 4. Nxd4 {[%clk 0:03:02]}  e5 {[%clk 0:03:01]} 5. Nb5 {[%clk 0:03:02]}  d6 {[%clk 0:03:01]} 6. N1c3 {[%clk 0:03:02]}  a6 {[%clk 0:02:54]} 7. Na3 {[%clk 0:03:02]}  b5 {[%clk 0:02:52]} 8. Nd5 {[%clk 0:03:01]}  Nge7 {[%clk 0:02:51]} 9. Bg5 {[%clk 0:02:58]}  Qa5+ {[%clk 0:02:43]} 10. Bd2 {[%clk 0:02:54]}  Qd8 {[%clk 0:02:43]} 11. c4 {[%clk 0:02:54]}  Nxd5 {[%clk 0:02:33]} 12. cxd5 {[%clk 0:02:42]}  Nd4 {[%clk 0:02:27]} 13. Nc2 {[%clk 0:02:42]}  Be7 {[%clk 0:02:25]} 14. Nxd4 {[%clk 0:02:38]}  exd4 {[%clk 0:02:25]} 15. a4 {[%clk 0:02:38]}  Bd7 {[%clk 0:02:17]} 16. axb5 {[%clk 0:02:34]}  axb5 {[%clk 0:02:17]} 17. Bd3 {[%clk 0:02:34]}  O-O {[%clk 0:02:11]} 18. O-O {[%clk 0:02:33]}  Qb6 {[%clk 0:02:07]} 19. Qe2 {[%clk 0:02:27]}  b4 {[%clk 0:01:57]} 20. f4 {[%clk 0:02:25]}  b3 {[%clk 0:01:55]} 21. e5 {[%clk 0:02:16]}  Ra2 {[%clk 0:01:51]} 22. Rab1 {[%clk 0:02:13]}  Bb5 {[%clk 0:01:31]} 23. Rf3 {[%clk 0:01:56]}  Bxd3 {[%clk 0:01:23]} 24. Qxd3 {[%clk 0:01:56]}  Rb8 {[%clk 0:01:03]} 25. e6 {[%clk 0:01:44]}  fxe6 {[%clk 0:00:41]} 26. dxe6 {[%clk 0:01:45]}  d5 {[%clk 0:00:42]} 27. Rh3 {[%clk 0:01:38]}  g6 {[%clk 0:00:39]} 28. f5 {[%clk 0:01:38]}  Qb5 {[%clk 0:00:39]} 29. Qg3 {[%clk 0:01:36]}  Rf8 {[%clk 0:00:22]} 30. fxg6 {[%clk 0:00:45]}  Rxb2 {[%clk 0:00:18]} 31. gxh7+ {[%clk 0:00:45]}  Kh8 {[%clk 0:00:18]} 32. Re1 {[%clk 0:00:38]}  Rxd2 {[%clk 0:00:08]} 33. Qe5+ {[%clk 0:00:37]}  Rf6 {[%clk 0:00:08]} 34. Rg3 {[%clk 0:00:31]}  b2 {[%clk 0:00:03]} 35. Qh5 {[%clk 0:00:27]}  Rf8 {[%clk 0:00:00]} 36. Qg6 {[%clk 0:00:26]} 1-0


[Site "https://www.chess.com"]

[Event "Titled Tuesday Blitz October 31 Early 2023"]
[White "Golizadeh, Asghar"]
[Black "BashirovKemal"]
[WhiteFideId "12505269"]
[WhiteElo "2765"]
[BlackElo "2671"]
[Result "0-1"]
[Round "10"]
[TimeControl "180+1"]
[Date "2023.10.31"]
[WhiteClock "0:00:08"]
[BlackClock "0:00:37"]
[Board "36"]

1. e4 {[%clk 0:02:59]}  c5 {[%clk 0:02:59]} 2. Nf3 {[%clk 0:02:48]}  d6 {[%clk 0:02:58]} 3. Bb5+ {[%clk 0:02:47]}  Nd7 {[%clk 0:02:57]} 4. d4 {[%clk 0:02:46]}  cxd4 {[%clk 0:02:53]} 5. Qxd4 {[%clk 0:02:47]}  a6 {[%clk 0:02:53]} 6. Bxd7+ {[%clk 0:02:48]}  Bxd7 {[%clk 0:02:51]} 7. c4 {[%clk 0:02:48]}  Nf6 {[%clk 0:02:50]} 8. Nc3 {[%clk 0:02:47]}  e5 {[%clk 0:02:45]} 9. Qd3 {[%clk 0:02:46]}  Be7 {[%clk 0:02:45]} 10. Bg5 {[%clk 0:02:43]}  O-O {[%clk 0:02:45]} 11. O-O {[%clk 0:02:36]}  Be6 {[%clk 0:02:42]} 12. Rfd1 {[%clk 0:02:35]}  Ne8 {[%clk 0:02:42]} 13. Bxe7 {[%clk 0:02:35]}  Qxe7 {[%clk 0:02:43]} 14. Rac1 {[%clk 0:02:33]}  Rc8 {[%clk 0:02:39]} 15. Nd2 {[%clk 0:02:30]}  f5 {[%clk 0:02:35]} 16. b3 {[%clk 0:02:28]}  f4 {[%clk 0:02:35]} 17. f3 {[%clk 0:02:26]}  g5 {[%clk 0:02:35]} 18. Nd5 {[%clk 0:02:25]}  Qd8 {[%clk 0:02:35]} 19. Nb1 {[%clk 0:02:24]}  h5 {[%clk 0:02:33]} 20. Nbc3 {[%clk 0:02:24]}  Rf7 {[%clk 0:02:33]} 21. Kf2 {[%clk 0:02:18]}  Rg7 {[%clk 0:02:27]} 22. Ke2 {[%clk 0:02:18]}  g4 {[%clk 0:02:25]} 23. Kd2 {[%clk 0:02:17]}  Qh4 {[%clk 0:02:18]} 24. Kc2 {[%clk 0:02:11]}  Qxh2 {[%clk 0:02:17]} 25. Rd2 {[%clk 0:01:58]}  g3 {[%clk 0:02:17]} 26. Kb2 {[%clk 0:01:55]}  h4 {[%clk 0:02:16]} 27. Nb6 {[%clk 0:01:50]}  Rd8 {[%clk 0:02:12]} 28. c5 {[%clk 0:01:50]}  h3 {[%clk 0:02:01]} 29. Rcc2 {[%clk 0:01:39]}  Qh1 {[%clk 0:01:50]} 30. b4 {[%clk 0:01:14]}  hxg2 {[%clk 0:01:39]} 31. Rxg2 {[%clk 0:01:14]}  Bh3 {[%clk 0:01:39]} 32. Rgd2 {[%clk 0:01:02]}  g2 {[%clk 0:01:38]} 33. Ne2 {[%clk 0:01:02]}  g1=Q {[%clk 0:01:28]} 34. Nxg1 {[%clk 0:01:02]}  Qxg1 {[%clk 0:01:29]} 35. Qd5+ {[%clk 0:01:02]}  Kh8 {[%clk 0:01:25]} 36. Rh2 {[%clk 0:01:03]}  Rh7 {[%clk 0:01:22]} 37. cxd6 {[%clk 0:00:59]}  Qxb6 {[%clk 0:01:20]} 38. Qxe5+ {[%clk 0:00:59]}  Ng7 {[%clk 0:01:17]} 39. Rc7 {[%clk 0:00:36]}  Qxb4+ {[%clk 0:01:05]} 40. Kc2 {[%clk 0:00:36]}  Qa4+ {[%clk 0:01:00]} 41. Kb2 {[%clk 0:00:28]}  Qb5+ {[%clk 0:00:48]} 42. Qxb5 {[%clk 0:00:27]}  axb5 {[%clk 0:00:49]} 43. e5 {[%clk 0:00:28]}  Bd7 {[%clk 0:00:46]} 44. Rg2 {[%clk 0:00:23]}  Bc6 {[%clk 0:00:45]} 45. Rg4 {[%clk 0:00:18]}  Ne6 {[%clk 0:00:39]} 46. Rxh7+ {[%clk 0:00:13]}  Kxh7 {[%clk 0:00:40]} 47. Kc3 {[%clk 0:00:12]}  Bxf3 {[%clk 0:00:38]} 48. Rh4+ {[%clk 0:00:12]}  Kg6 {[%clk 0:00:38]} 49. Kb4 {[%clk 0:00:08]}  Bc6 {[%clk 0:00:37]} 0-1


[Site "https://www.chess.com"]

[Event "Titled Tuesday Blitz October 31 Early 2023"]
[White "Hamitevici, Vladimir"]
[Black "Goltsev, Dmitry"]
[WhiteFideId "13902393"]
[BlackFideId "24176710"]
[WhiteElo "2738"]
[BlackElo "2668"]
[Result "0-1"]
[Round "10"]
[TimeControl "180+1"]
[Date "2023.10.31"]
[WhiteClock "0:00:02"]
[BlackClock "0:00:36"]
[Board "37"]

1. a3 {[%clk 0:03:00]}  g6 {[%clk 0:02:59]} 2. d4 {[%clk 0:03:00]}  Bg7 {[%clk 0:03:00]} 3. Nf3 {[%clk 0:03:01]}  b6 {[%clk 0:02:59]} 4. e3 {[%clk 0:03:00]}  Bb7 {[%clk 0:03:00]} 5. Be2 {[%clk 0:03:00]}  e6 {[%clk 0:03:00]} 6. O-O {[%clk 0:03:00]}  Ne7 {[%clk 0:03:01]} 7. c4 {[%clk 0:03:00]}  O-O {[%clk 0:03:00]} 8. Nc3 {[%clk 0:03:00]}  d5 {[%clk 0:03:01]} 9. cxd5 {[%clk 0:02:56]}  exd5 {[%clk 0:03:02]} 10. Ne5 {[%clk 0:02:55]}  c5 {[%clk 0:03:02]} 11. Bf3 {[%clk 0:02:51]}  Nbc6 {[%clk 0:03:01]} 12. Nxc6 {[%clk 0:02:47]}  Bxc6 {[%clk 0:03:01]} 13. dxc5 {[%clk 0:02:33]}  bxc5 {[%clk 0:03:02]} 14. Qd2 {[%clk 0:02:27]}  d4 {[%clk 0:03:01]} 15. Ne4 {[%clk 0:02:23]}  Nf5 {[%clk 0:02:54]} 16. Qe2 {[%clk 0:01:33]}  d3 {[%clk 0:02:50]} 17. Qd1 {[%clk 0:01:29]}  Nh4 {[%clk 0:02:46]} 18. Nd2 {[%clk 0:01:26]}  Nxf3+ {[%clk 0:02:41]} 19. Nxf3 {[%clk 0:01:27]}  c4 {[%clk 0:02:39]} 20. Rb1 {[%clk 0:01:16]}  Qd5 {[%clk 0:02:35]} 21. Bd2 {[%clk 0:01:14]}  Rab8 {[%clk 0:02:33]} 22. Qc1 {[%clk 0:01:12]}  Rb3 {[%clk 0:02:20]} 23. Re1 {[%clk 0:00:58]}  Rfb8 {[%clk 0:02:15]} 24. e4 {[%clk 0:00:56]}  Qb5 {[%clk 0:02:06]} 25. Bf4 {[%clk 0:00:49]}  Rb7 {[%clk 0:01:43]} 26. Nd2 {[%clk 0:00:49]}  Rxb2 {[%clk 0:01:40]} 27. Rxb2 {[%clk 0:00:41]}  Bxb2 {[%clk 0:01:40]} 28. Qxc4 {[%clk 0:00:41]}  Qxc4 {[%clk 0:01:39]} 29. Nxc4 {[%clk 0:00:42]}  Bc3 {[%clk 0:01:40]} 30. Rc1 {[%clk 0:00:38]}  Rb3 {[%clk 0:01:23]} 31. Bd2 {[%clk 0:00:31]}  Bxd2 {[%clk 0:01:18]} 32. Nxd2 {[%clk 0:00:31]}  Rxa3 {[%clk 0:01:19]} 33. f3 {[%clk 0:00:30]}  Ra2 {[%clk 0:01:04]} 34. Nf1 {[%clk 0:00:14]}  Ba4 {[%clk 0:01:00]} 35. Rc8+ {[%clk 0:00:15]}  Kg7 {[%clk 0:01:00]} 36. Rd8 {[%clk 0:00:16]}  Bb5 {[%clk 0:00:55]} 37. Ne3 {[%clk 0:00:12]}  d2 {[%clk 0:00:44]} 38. g4 {[%clk 0:00:10]}  Be2 {[%clk 0:00:41]} 39. g5 {[%clk 0:00:06]}  Bxf3 {[%clk 0:00:37]} 40. e5 {[%clk 0:00:03]}  d1=Q+ {[%clk 0:00:36]} 41. Nxd1 {[%clk 0:00:03]}  Ra1 {[%clk 0:00:36]} 42. Kf2 {[%clk 0:00:04]}  Rxd1 {[%clk 0:00:36]} 43. Ra8 {[%clk 0:00:02]}  Bxa8 {[%clk 0:00:36]} 0-1


[Site "https://www.chess.com"]

[Event "Titled Tuesday Blitz October 31 Early 2023"]
[White "Kislinsky, Alexey"]
[Black "Nurmanova, Alua"]
[WhiteFideId "14108801"]
[BlackFideId "13729390"]
[WhiteElo "2734"]
[BlackElo "2648"]
[Result "1-0"]
[Round "10"]
[TimeControl "180+1"]
[Date "2023.10.31"]
[WhiteClock "0:00:11"]
[BlackClock "0:00:24"]
[Board "38"]

1. e4 {[%clk 0:03:00]}  c5 {[%clk 0:03:00]} 2. c3 {[%clk 0:02:58]}  d5 {[%clk 0:02:58]} 3. exd5 {[%clk 0:02:58]}  Qxd5 {[%clk 0:02:59]} 4. d4 {[%clk 0:02:59]}  Nf6 {[%clk 0:02:59]} 5. Nf3 {[%clk 0:02:55]}  Bg4 {[%clk 0:03:00]} 6. dxc5 {[%clk 0:02:48]}  Qxc5 {[%clk 0:02:58]} 7. Be3 {[%clk 0:02:46]}  Qc7 {[%clk 0:02:54]} 8. Na3 {[%clk 0:02:42]}  a6 {[%clk 0:02:46]} 9. h3 {[%clk 0:02:33]}  Bh5 {[%clk 0:02:43]} 10. Nc4 {[%clk 0:02:30]}  Nbd7 {[%clk 0:02:43]} 11. a4 {[%clk 0:02:24]}  e5 {[%clk 0:02:39]} 12. g4 {[%clk 0:01:18]}  Bg6 {[%clk 0:02:38]} 13. g5 {[%clk 0:00:42]}  Nh5 {[%clk 0:02:36]} 14. Nh4 {[%clk 0:00:32]}  Be7 {[%clk 0:02:24]} 15. Nxg6 {[%clk 0:00:30]}  hxg6 {[%clk 0:02:23]} 16. Qd5 {[%clk 0:00:26]}  O-O {[%clk 0:02:15]} 17. O-O-O {[%clk 0:00:26]}  Nc5 {[%clk 0:02:15]} 18. Qxe5 {[%clk 0:00:20]}  Qc6 {[%clk 0:01:28]} 19. Qxe7 {[%clk 0:00:18]}  Nb3+ {[%clk 0:01:27]} 20. Kc2 {[%clk 0:00:17]}  Qxh1 {[%clk 0:01:18]} 21. Kxb3 {[%clk 0:00:16]}  b5 {[%clk 0:01:19]} 22. axb5 {[%clk 0:00:16]}  axb5 {[%clk 0:01:20]} 23. Na3 {[%clk 0:00:13]}  b4 {[%clk 0:01:17]} 24. cxb4 {[%clk 0:00:12]}  Rfb8 {[%clk 0:01:15]} 25. Qxf7+ {[%clk 0:00:09]}  Kh8 {[%clk 0:01:07]} 26. Qxg6 {[%clk 0:00:06]}  Qf3 {[%clk 0:01:07]} 27. Bd3 {[%clk 0:00:02]}  Qxd1+ {[%clk 0:01:07]} 28. Bc2 {[%clk 0:00:03]}  Qd5+ {[%clk 0:01:06]} 29. Nc4 {[%clk 0:00:03]}  Kg8 {[%clk 0:00:50]} 30. Qh7+ {[%clk 0:00:03]}  Kf8 {[%clk 0:00:50]} 31. Qxh5 {[%clk 0:00:04]}  Rc8 {[%clk 0:00:40]} 32. Qh8+ {[%clk 0:00:04]}  Kf7 {[%clk 0:00:39]} 33. g6+ {[%clk 0:00:04]}  Kf6 {[%clk 0:00:38]} 34. Qh4+ {[%clk 0:00:03]}  Ke6 {[%clk 0:00:37]} 35. Qe4+ {[%clk 0:00:04]}  Qxe4 {[%clk 0:00:31]} 36. Bxe4 {[%clk 0:00:05]}  Rab8 {[%clk 0:00:32]} 37. f4 {[%clk 0:00:06]}  Rc7 {[%clk 0:00:31]} 38. f5+ {[%clk 0:00:06]}  Kd7 {[%clk 0:00:31]} 39. Bc5 {[%clk 0:00:06]}  Rbc8 {[%clk 0:00:31]} 40. Ne5+ {[%clk 0:00:06]}  Ke8 {[%clk 0:00:31]} 41. Kc4 {[%clk 0:00:07]}  Rd8 {[%clk 0:00:25]} 42. Bc6+ {[%clk 0:00:07]}  Rxc6 {[%clk 0:00:25]} 43. Nxc6 {[%clk 0:00:08]}  Rd1 {[%clk 0:00:26]} 44. b5 {[%clk 0:00:07]}  Rc1+ {[%clk 0:00:27]} 45. Kb4 {[%clk 0:00:08]}  Kd7 {[%clk 0:00:28]} 46. Ne5+ {[%clk 0:00:08]}  Kc7 {[%clk 0:00:28]} 47. Nc4 {[%clk 0:00:08]}  Kb7 {[%clk 0:00:27]} 48. b3 {[%clk 0:00:09]}  Rh1 {[%clk 0:00:27]} 49. Bf8 {[%clk 0:00:09]}  Rxh3 {[%clk 0:00:26]} 50. Bxg7 {[%clk 0:00:10]}  Rf3 {[%clk 0:00:26]} 51. f6 {[%clk 0:00:10]}  Rf5 {[%clk 0:00:24]} 52. f7 {[%clk 0:00:11]} 1-0


[Site "https://www.chess.com"]